Workbook

Sheet ZADANIOWY
A1: PLAN DOCHODÓW REALIZOWANYCH - wg ŹRÓDEŁ | J1: Załącznik Nr 1
J2: do uchwały Nr XII/91/2025
J3: Rady Dzielnicy Białołęka m.st. Warszawy
J4: z dnia 12 marca 2025 r.
A6: D.02.000 | B6: wykonanie na 31.12.2024r. | G6: =G1758 -> 61693272 | H6: 48700564.07 | I6: =H6/G6 -> 0.7893983005 | J6: 41356559 | K6: =K1758 -> 27719579.62 | L6: =K6/J6 -> 0.6702583651
A7: PROGRAM | B7: OPIS | C7: DZIAŁ | D7: ROZDZIAŁ | E7: § | F7: OBSZAR FUNKCJONALNY | G7: PLAN | H7: wykonanie | I7: % | J7: w tym Urząd plan | K7: wykonanie | L7: % | M7: WYPEŁNIONE POZYCJE | N7: WYPEŁNIONE ZMIANY | O7: =IF(COUNTIF(O8:O1758,"ujemny plan")<>0,"ŹLE","") -> 
A8: DB | B8: DOCHODY BIEŻĄCE | G8: =SUM(G9,G994) -> 46333506 | H8: =SUM(H9,H994) -> 47700369.79 | I8: =H8/G8 -> 1.029500547 | J8: =SUM(J9,J994) -> 25996793 | K8: =SUM(K9,K994) -> 26719385.34 | L8: =K8/J8 -> 1.027795442 | M8: =IF(SUM(G8:L8)>0,"Tak","") -> Tak | N8: =IF(SUM(#REF!)>0,"Tak","") ->  | O8: =IF(OR(G8<0,J8<0,#REF!<0,#REF!<0),"ujemny plan","") -> 
A9: DWB | B9: DOCHODY WŁASNE | G9: =SUM(G10,G24,G30,G36,G53,G278,G973,G980) -> 46333506 | H9: =SUM(H10,H24,H30,H36,H53,H278,H973,H980) -> 47700369.79 | I9: =H9/G9 -> 1.029500547 | J9: =SUM(J10,J24,J30,J36,J53,J278,J973,J980) -> 25996793 | K9: =SUM(K10,K24,K30,K36,K53,K278,K973,K980) -> 26719385.34 | L9: =K9/J9 -> 1.027795442 | M9: Tak | N9: =IF(SUM(#REF!)>0,"Tak","") ->  | O9: =IF(OR(G9<0,J9<0,#REF!<0,#REF!<0),"ujemny plan","") -> 
A10: DWB/1 | B10: Podatki i opłaty lokalne ogółem | G10: =SUM(G11,G14,G17,G20,G23) -> 0 | J10: 0 | N10: =IF(SUM(#REF!)>0,"Tak","") ->  | O10: =IF(OR(G10<0,J10<0,#REF!<0,#REF!<0),"ujemny plan","") -> 
A11: DWB/1/PN | B11: Podatek od nieruchomości | E11: 0310 | G11: =SUM(G12:G13) -> 0 | J11: 0 | N11: =IF(SUM(#REF!)>0,"Tak","") ->  | O11: =IF(OR(G11<0,J11<0,#REF!<0,#REF!<0),"ujemny plan","") -> 
A12: DWB/1/PN | B12: Podatek od nieruchomości | C12: 756 | D12: 75615 | E12: 0310 | F12: GMMW | N12: =IF(SUM(#REF!)>0,"Tak","") ->  | O12: =IF(OR(G12<0,J12<0,#REF!<0,#REF!<0),"ujemny plan","") -> 
A13: DWB/1/PN | B13: Podatek od nieruchomości | C13: 756 | D13: 75616 | E13: 0310 | F13: GMMW | N13: =IF(SUM(#REF!)>0,"Tak","") ->  | O13: =IF(OR(G13<0,J13<0,#REF!<0,#REF!<0),"ujemny plan","") -> 
A14: DWB/1/PR | B14: Podatek rolny | E14: 0320 | G14: =SUM(G15:G16) -> 0 | J14: 0 | N14: =IF(SUM(#REF!)>0,"Tak","") ->  | O14: =IF(OR(G14<0,J14<0,#REF!<0,#REF!<0),"ujemny plan","") -> 
A15: DWB/1/PR | B15: Podatek rolny | C15: 756 | D15: 75615 | E15: 0320 | F15: GMMW | N15: =IF(SUM(#REF!)>0,"Tak","") ->  | O15: =IF(OR(G15<0,J15<0,#REF!<0,#REF!<0),"ujemny plan","") -> 
A16: DWB/1/PR | B16: Podatek rolny | C16: 756 | D16: 75616 | E16: 0320 | F16: GMMW | N16: =IF(SUM(#REF!)>0,"Tak","") ->  | O16: =IF(OR(G16<0,J16<0,#REF!<0,#REF!<0),"ujemny plan","") -> 
A17: DWB/1/PL | B17: Podatek leśny | E17: 0330 | G17: =SUM(G18:G19) -> 0 | J17: 0 | N17: =IF(SUM(#REF!)>0,"Tak","") ->  | O17: =IF(OR(G17<0,J17<0,#REF!<0,#REF!<0),"ujemny plan","") -> 
A18: DWB/1/PL | B18: Podatek leśny | C18: 756 | D18: 75615 | E18: 0330 | F18: GMMW | N18: =IF(SUM(#REF!)>0,"Tak","") ->  | O18: =IF(OR(G18<0,J18<0,#REF!<0,#REF!<0),"ujemny plan","") -> 
A19: DWB/1/PL | B19: Podatek leśny | C19: 756 | D19: 75616 | E19: 0330 | F19: GMMW | N19: =IF(SUM(#REF!)>0,"Tak","") ->  | O19: =IF(OR(G19<0,J19<0,#REF!<0,#REF!<0),"ujemny plan","") -> 
A20: DWB/1/ST | B20: Podatek od środków transportowych | E20: 0340 | G20: =SUM(G21:G22) -> 0 | J20: 0 | N20: =IF(SUM(#REF!)>0,"Tak","") ->  | O20: =IF(OR(G20<0,J20<0,#REF!<0,#REF!<0),"ujemny plan","") -> 
A21: DWB/1/ST | B21: Podatek od środków transportowych | C21: 756 | D21: 75615 | E21: 0340 | F21: GMMW | N21: =IF(SUM(#REF!)>0,"Tak","") ->  | O21: =IF(OR(G21<0,J21<0,#REF!<0,#REF!<0),"ujemny plan","") -> 
A22: DWB/1/ST | B22: Podatek od środków transportowych | C22: 756 | D22: 75616 | E22: 0340 | F22: GMMW | N22: =IF(SUM(#REF!)>0,"Tak","") ->  | O22: =IF(OR(G22<0,J22<0,#REF!<0,#REF!<0),"ujemny plan","") -> 
A23: DWB/1/PZ | B23: Zaległości z podatków zniesionych | C23: 756 | D23: 75616 | E23: 0560 | F23: GMMW | N23: =IF(SUM(#REF!)>0,"Tak","") ->  | O23: =IF(OR(G23<0,J23<0,#REF!<0,#REF!<0),"ujemny plan","") -> 
A24: DWB/2 | B24: Podatki pobierane przez urzędy skarbowe | G24: =SUM(G25:G27) -> 0 | J24: 0 | N24: =IF(SUM(#REF!)>0,"Tak","") ->  | O24: =IF(OR(G24<0,J24<0,#REF!<0,#REF!<0),"ujemny plan","") -> 
A25: DWB/2/DG | B25: Podatek od działalności gospodarczej osób fizycznych opłacany w formie karty podatkowej | C25: 756 | D25: 75601 | E25: 0350 | F25: GMMW | N25: =IF(SUM(#REF!)>0,"Tak","") ->  | O25: =IF(OR(G25<0,J25<0,#REF!<0,#REF!<0),"ujemny plan","") -> 
A26: DWB/2/SD | B26: Podatek od spadków i darowizn | C26: 756 | D26: 75616 | E26: 0360 | F26: GMMW | N26: =IF(SUM(#REF!)>0,"Tak","") ->  | O26: =IF(OR(G26<0,J26<0,#REF!<0,#REF!<0),"ujemny plan","") -> 
A27: DWB/2/CC | B27: Podatek od czynności cywilnoprawnych | E27: 0500 | G27: =SUM(G28:G29) -> 0 | J27: 0 | N27: =IF(SUM(#REF!)>0,"Tak","") ->  | O27: =IF(OR(G27<0,J27<0,#REF!<0,#REF!<0),"ujemny plan","") -> 
A28: DWB/2/CC | B28: Podatek od czynności cywilnoprawnych | C28: 756 | D28: 75615 | E28: 0500 | F28: GMMW | N28: =IF(SUM(#REF!)>0,"Tak","") ->  | O28: =IF(OR(G28<0,J28<0,#REF!<0,#REF!<0),"ujemny plan","") -> 
A29: DWB/2/CC | B29: Podatek od czynności cywilnoprawnych | C29: 756 | D29: 75616 | E29: 0500 | F29: GMMW | N29: =IF(SUM(#REF!)>0,"Tak","") ->  | O29: =IF(OR(G29<0,J29<0,#REF!<0,#REF!<0),"ujemny plan","") -> 
A30: DWB/3 | B30: Wpływy z opłat | G30: =SUM(G31:G33) -> 0 | J30: 0 | N30: =IF(SUM(#REF!)>0,"Tak","") ->  | O30: =IF(OR(G30<0,J30<0,#REF!<0,#REF!<0),"ujemny plan","") -> 
A31: DWB/3/OS | B31: Opłata skarbowa | C31: 756 | D31: 75618 | E31: 0410 | F31: GMMW | N31: =IF(SUM(#REF!)>0,"Tak","") ->  | O31: =IF(OR(G31<0,J31<0,#REF!<0,#REF!<0),"ujemny plan","") -> 
A32: DWB/3/KO | B32: Opłata komunikacyjna | C32: 756 | D32: 75618 | E32: 0420 | F32: PWMW | N32: =IF(SUM(#REF!)>0,"Tak","") ->  | O32: =IF(OR(G32<0,J32<0,#REF!<0,#REF!<0),"ujemny plan","") -> 
A33: DWB/3/SA | B33: Opłata za wydawanie zezwoleń na sprzedaż napojów alkoholowych | G33: =SUM(G34:G35) -> 0 | J33: 0 | N33: =IF(SUM(#REF!)>0,"Tak","") ->  | O33: =IF(OR(G33<0,J33<0,#REF!<0,#REF!<0),"ujemny plan","") -> 
A34: DWB/3/SA | B34: Opłata za wydawanie zezwoleń na sprzedaż napojów alkoholowych | C34: 756 | D34: 75618 | E34: 0270 | N34: =IF(SUM(#REF!)>0,"Tak","") ->  | O34: =IF(OR(G34<0,J34<0,#REF!<0,#REF!<0),"ujemny plan","") -> 
A35: DWB/3/SA | B35: Opłata za wydawanie zezwoleń na sprzedaż napojów alkoholowych | C35: 756 | D35: 75616 | E35: 0480 | N35: =IF(SUM(#REF!)>0,"Tak","") ->  | O35: =IF(OR(G35<0,J35<0,#REF!<0,#REF!<0),"ujemny plan","") -> 
A36: DWB/4 | B36: Inne opłaty pobierane na podstawie odrębnych ustaw | G36: =SUM(G37:G46,G52) -> 728500 | H36: 921728.49 | I36: 1.265241579 | J36: 728500 | K36: 921728.49 | L36: 1.265241579 | M36: Tak | N36: =IF(SUM(#REF!)>0,"Tak","") ->  | O36: =IF(OR(G36<0,J36<0,#REF!<0,#REF!<0),"ujemny plan","") -> 
A37: DWB/4/GO | B37: Opłata za gospodarowanie odpadami komunalnymi | C37: 900 | D37: 90002 | E37: 0490 | F37: GODK | N37: =IF(SUM(#REF!)>0,"Tak","") ->  | O37: =IF(OR(G37<0,J37<0,#REF!<0,#REF!<0),"ujemny plan","") -> 
A38: DWB/4/OA | B38: Opłaty adiacenckie | C38: 756 | D38: 75618 | E38: 0490 | F38: GMMW | G38: 715500 | H38: 905728.49 | I38: 1.265867911 | J38: 715500 | K38: 905728.49 | L38: 1.265867911 | M38: Tak | N38: =IF(SUM(#REF!)>0,"Tak","") ->  | O38: =IF(OR(G38<0,J38<0,#REF!<0,#REF!<0),"ujemny plan","") -> 
A39: DWB/4/RP | B39: Renta planistyczna | C39: 756 | D39: 75618 | E39: 0490 | F39: GMMW | G39: 13000 | H39: 16000 | I39: 1.230769231 | J39: 13000 | K39: 16000 | L39: 1.230769231 | M39: Tak | N39: =IF(SUM(#REF!)>0,"Tak","") ->  | O39: =IF(OR(G39<0,J39<0,#REF!<0,#REF!<0),"ujemny plan","") -> 
A40: DWB/4/PD | B40: Opłaty za zajęcie pasa drogowego | C40: 756 | D40: 75618 | E40: 0490 | F40: GMMW | G40: 0 | J40: 0 | N40: =IF(SUM(#REF!)>0,"Tak","") ->  | O40: =IF(OR(G40<0,J40<0,#REF!<0,#REF!<0),"ujemny plan","") -> 
A41: DWB/4/PJ | B41: Opłaty za wydanie prawa jazdy | C41: 756 | D41: 75618 | E41: 0650 | F41: PWMW | N41: =IF(SUM(#REF!)>0,"Tak","") ->  | O41: =IF(OR(G41<0,J41<0,#REF!<0,#REF!<0),"ujemny plan","") -> 
A42: DWB/4/PL | B42: Opłaty za pozostałe licencje | C42: 756 | D42: 75618 | E42: 0590 | F42: PWMW | N42: =IF(SUM(#REF!)>0,"Tak","") ->  | O42: =IF(OR(G42<0,J42<0,#REF!<0,#REF!<0),"ujemny plan","") -> 
A43: DWB/4/LP | B43: Opłaty za licencje przewozowe | C43: 756 | D43: 75618 | E43: 0590 | F43: GMMW | N43: =IF(SUM(#REF!)>0,"Tak","") ->  | O43: =IF(OR(G43<0,J43<0,#REF!<0,#REF!<0),"ujemny plan","") -> 
A44: DWB/4/LP | B44: Opłaty za licencje przewozowe | C44: 756 | D44: 75618 | E44: 0590 | F44: PWMW | N44: =IF(SUM(#REF!)>0,"Tak","") ->  | O44: =IF(OR(G44<0,J44<0,#REF!<0,#REF!<0),"ujemny plan","") -> 
A45: DWB/4/OE | B45: Opłata eksploatacyjna | C45: 756 | D45: 75618 | E45: 0460 | N45: =IF(SUM(#REF!)>0,"Tak","") ->  | O45: =IF(OR(G45<0,J45<0,#REF!<0,#REF!<0),"ujemny plan","") -> 
A46: DWB/4/OP | B46: Opłata prolongacyjna | G46: =SUM(G47:G51) -> 0 | J46: 0 | N46: =IF(SUM(#REF!)>0,"Tak","") ->  | O46: =IF(OR(G46<0,J46<0,#REF!<0,#REF!<0),"ujemny plan","") -> 
A47: DWB/4/OP | B47: Opłata prolongacyjna | C47: 600 | D47: 60095 | E47: 0880 | N47: =IF(SUM(#REF!)>0,"Tak","") ->  | O47: =IF(OR(G47<0,J47<0,#REF!<0,#REF!<0),"ujemny plan","") -> 
A48: DWB/4/OP | B48: Opłata prolongacyjna | C48: 756 | D48: 75615 | E48: 0880 | N48: =IF(SUM(#REF!)>0,"Tak","") ->  | O48: =IF(OR(G48<0,J48<0,#REF!<0,#REF!<0),"ujemny plan","") -> 
A49: DWB/4/OP | B49: Opłata prolongacyjna | C49: 756 | D49: 75616 | E49: 0880 | N49: =IF(SUM(#REF!)>0,"Tak","") ->  | O49: =IF(OR(G49<0,J49<0,#REF!<0,#REF!<0),"ujemny plan","") -> 
A50: DWB/4/OP | B50: Opłata prolongacyjna | C50: 756 | D50: 75618 | E50: 0880 | N50: =IF(SUM(#REF!)>0,"Tak","") ->  | O50: =IF(OR(G50<0,J50<0,#REF!<0,#REF!<0),"ujemny plan","") -> 
A51: DWB/4/OP | B51: Opłata prolongacyjna | C51: 900 | D51: 90002 | E51: 0880 | N51: =IF(SUM(#REF!)>0,"Tak","") ->  | O51: =IF(OR(G51<0,J51<0,#REF!<0,#REF!<0),"ujemny plan","") -> 
A52: DWB/4/OR | B52: Opłata restrukturyzacyjna | C52: 756 | D52: 75619 | E52: 0130 | N52: =IF(SUM(#REF!)>0,"Tak","") ->  | O52: =IF(OR(G52<0,J52<0,#REF!<0,#REF!<0),"ujemny plan","") -> 
A53: DWB/5 | B53: Dochody z mienia | G53: =SUM(G54,G58:G59,G60,G62,G276:G277) -> 32986034 | H53: =SUM(H54,H58:H59,H60,H62,H276:H277) -> 34280712.23 | I53: 1.039249284 | J53: =SUM(J54,J58:J59,J60,J62,J276:J277) -> 21838134 | K53: =SUM(K54,K58:K59,K60,K62,K276:K277) -> 22486366.13 | L53: 1.029683494 | M53: Tak | N53: =IF(SUM(#REF!)>0,"Tak","") ->  | O53: =IF(OR(G53<0,J53<0,#REF!<0,#REF!<0),"ujemny plan","") -> 
A54: DWB/5/UW | B54: Opłaty za użytkowanie wieczyste nieruchomości | E54: 0550 | G54: =SUM(G55:G57) -> 11251443 | H54: =SUM(H55:H57) -> 11291288.62 | I54: 1.003541379 | J54: =SUM(J55:J57) -> 11251443 | K54: =SUM(K55:K57) -> 11291288.62 | L54: 1.003541379 | M54: Tak | N54: =IF(SUM(#REF!)>0,"Tak","") ->  | O54: =IF(OR(G54<0,J54<0,#REF!<0,#REF!<0),"ujemny plan","") -> 
A55: DWB/5/UW/PW | B55: pierwsza opłata za oddanie w użytkowanie wieczyste | C55: 700 | D55: 70005 | E55: 0550 | F55: GMMW | N55: =IF(SUM(#REF!)>0,"Tak","") ->  | O55: =IF(OR(G55<0,J55<0,#REF!<0,#REF!<0),"ujemny plan","") -> 
A56: DWB/5/UW/RW | B56: opłaty roczne za użytkowanie wieczyste | C56: 700 | D56: 70005 | E56: 0550 | F56: GMMW | G56: 11251443 | H56: 11291288.62 | I56: 1.003541379 | J56: 11251443 | K56: 11291288.62 | L56: 1.003541379 | M56: Tak | N56: =IF(SUM(#REF!)>0,"Tak","") ->  | O56: =IF(OR(G56<0,J56<0,#REF!<0,#REF!<0),"ujemny plan","") -> 
A57: DWB/5/UW/PO | B57: pozostałe opłaty za użytkowanie wieczyste | C57: 700 | D57: 70005 | E57: 0550 | F57: GMMW | N57: =IF(SUM(#REF!)>0,"Tak","") ->  | O57: =IF(OR(G57<0,J57<0,#REF!<0,#REF!<0),"ujemny plan","") -> 
A58: DWB/5/ZS | B58: Opłaty za trwały zarząd, użytkowanie i służebności | C58: 700 | D58: 70005 | E58: 0470 | F58: GMMW | G58: 45000 | H58: 6819.14 | I58: 0.1515364444 | J58: 45000 | K58: 6819.14 | L58: 0.1515364444 | M58: Tak | N58: =IF(SUM(#REF!)>0,"Tak","") ->  | O58: =IF(OR(G58<0,J58<0,#REF!<0,#REF!<0),"ujemny plan","") -> 
A59: DWB/5/KO | B59: Wpłaty z zysku od przedsiębiorstw komunalnych | C59: 756 | D59: 75605 | E59: 0730 | F59: GMMW | N59: =IF(SUM(#REF!)>0,"Tak","") ->  | O59: =IF(OR(G59<0,J59<0,#REF!<0,#REF!<0),"ujemny plan","") -> 
A60: DWB/5/DZ | B60: Dywidenda od spółek | E60: 0740 | G60: =SUM(G61:G61) -> 0 | J60: 0 | N60: =IF(SUM(#REF!)>0,"Tak","") ->  | O60: =IF(OR(G60<0,J60<0,#REF!<0,#REF!<0),"ujemny plan","") -> 
A61: DWB/5/DZ/PO | B61: Dywidendy | C61: 756 | D61: 75624 | E61: 0740 | F61: GMMW | N61: =IF(SUM(#REF!)>0,"Tak","") ->  | O61: =IF(OR(G61<0,J61<0,#REF!<0,#REF!<0),"ujemny plan","") -> 
A62: DWB/5/ND | B62: Dochody z najmu i dzierżawy mienia | E62: 0750 | G62: =SUM(G152,G94,G183,G124,G63,G248,G92,G211,G213) -> 21689591 | H62: =SUM(H152,H94,H183,H124,H63,H248,H92,H211,H213) -> 22982604.47 | I62: 1.05961447 | J62: =SUM(J152,J94,J183,J124,J63,J248,J92,J211,J213) -> 10541691 | K62: =SUM(K152,K94,K183,K124,K63,K248,K92,K211,K213) -> 11188258.37 | L62: 1.061334312 | M62: Tak | N62: =IF(SUM(#REF!)>0,"Tak","") ->  | O62: =IF(OR(G62<0,J62<0,#REF!<0,#REF!<0),"ujemny plan","") -> 
A63: DWB/5/ND/DG | B63: wpływy z dzierżawy gruntów | E63: 0750 | G63: =SUM(G64:G91) -> 14816863 | H63: =SUM(H64:H91) -> 15582977.76 | I63: 1.051705598 | J63: 9036863 | K63: =SUM(K64:K91) -> 9661804.17 | L63: 1.069154658 | M63: Tak | N63: =IF(SUM(#REF!)>0,"Tak","") ->  | O63: =IF(OR(G63<0,J63<0,#REF!<0,#REF!<0),"ujemny plan","") -> 
A64: DWB/5/ND/DG | B64: wpływy z dzierżawy gruntów | C64: 600 | D64: 60004 | E64: 0750 | N64: =IF(SUM(#REF!)>0,"Tak","") ->  | O64: =IF(OR(G64<0,J64<0,#REF!<0,#REF!<0),"ujemny plan","") -> 
A65: DWB/5/ND/DG | B65: wpływy z dzierżawy gruntów | C65: 600 | D65: 60015 | E65: 0750 | N65: =IF(SUM(#REF!)>0,"Tak","") ->  | O65: =IF(OR(G65<0,J65<0,#REF!<0,#REF!<0),"ujemny plan","") -> 
A66: DWB/5/ND/DG | B66: wpływy z dzierżawy gruntów | C66: 600 | D66: 60016 | E66: 0750 | F66: GMMW | N66: =IF(SUM(#REF!)>0,"Tak","") ->  | O66: =IF(OR(G66<0,J66<0,#REF!<0,#REF!<0),"ujemny plan","") -> 
A67: DWB/5/ND/DG | B67: wpływy z dzierżawy gruntów | C67: 700 | D67: 70004 | E67: 0750 | N67: =IF(SUM(#REF!)>0,"Tak","") ->  | O67: =IF(OR(G67<0,J67<0,#REF!<0,#REF!<0),"ujemny plan","") -> 
A68: DWB/5/ND/DG | B68: wpływy z dzierżawy gruntów | C68: 700 | D68: 70005 | E68: 0750 | F68: GMMW | G68: 14816863 | H68: =5921173.59+K68 -> 15582977.76 | I68: 1.051705598 | J68: 9036863 | K68: 9661804.17 | L68: 1.069154658 | M68: Tak | N68: =IF(SUM(#REF!)>0,"Tak","") ->  | O68: =IF(OR(G68<0,J68<0,#REF!<0,#REF!<0),"ujemny plan","") -> 
A69: DWB/5/ND/DG | B69: wpływy z dzierżawy gruntów | C69: 750 | D69: 75023 | E69: 0750 | F69: GMMW | N69: =IF(SUM(#REF!)>0,"Tak","") ->  | O69: =IF(OR(G69<0,J69<0,#REF!<0,#REF!<0),"ujemny plan","") -> 
A70: DWB/5/ND/DG | B70: wpływy z dzierżawy gruntów | C70: 801 | D70: 80101 | E70: 0750 | N70: =IF(SUM(#REF!)>0,"Tak","") ->  | O70: =IF(OR(G70<0,J70<0,#REF!<0,#REF!<0),"ujemny plan","") -> 
A71: DWB/5/ND/DG | B71: wpływy z dzierżawy gruntów | C71: 801 | D71: 80102 | E71: 0750 | N71: =IF(SUM(#REF!)>0,"Tak","") ->  | O71: =IF(OR(G71<0,J71<0,#REF!<0,#REF!<0),"ujemny plan","") -> 
A72: DWB/5/ND/DG | B72: wpływy z dzierżawy gruntów | C72: 801 | D72: 80104 | E72: 0750 | M72: =IF(SUM(G72:L72)>0,"Tak","") ->  | N72: =IF(SUM(#REF!)>0,"Tak","") ->  | O72: =IF(OR(G72<0,J72<0,#REF!<0,#REF!<0),"ujemny plan","") -> 
A73: DWB/5/ND/DG | B73: wpływy z dzierżawy gruntów | C73: 801 | D73: 80120 | E73: 0750 | I73: =H73/G73 ->  | L73: =K73/J73 ->  | N73: =IF(SUM(#REF!)>0,"Tak","") ->  | O73: =IF(OR(G73<0,J73<0,#REF!<0,#REF!<0),"ujemny plan","") -> 
A74: DWB/5/ND/DG | B74: wpływy z dzierżawy gruntów | C74: 801 | D74: 80134 | E74: 0750 | N74: =IF(SUM(#REF!)>0,"Tak","") ->  | O74: =IF(OR(G74<0,J74<0,#REF!<0,#REF!<0),"ujemny plan","") -> 
A75: DWB/5/ND/DG | B75: wpływy z dzierżawy gruntów | C75: 801 | D75: 80140 | E75: 0750 | N75: =IF(SUM(#REF!)>0,"Tak","") ->  | O75: =IF(OR(G75<0,J75<0,#REF!<0,#REF!<0),"ujemny plan","") -> 
A76: DWB/5/ND/DG | B76: wpływy z dzierżawy gruntów | C76: 801 | D76: 80148 | E76: 0750 | N76: =IF(SUM(#REF!)>0,"Tak","") ->  | O76: =IF(OR(G76<0,J76<0,#REF!<0,#REF!<0),"ujemny plan","") -> 
A77: DWB/5/ND/DG | B77: wpływy z dzierżawy gruntów | C77: 851 | D77: 85158 | E77: 0750 | N77: =IF(SUM(#REF!)>0,"Tak","") ->  | O77: =IF(OR(G77<0,J77<0,#REF!<0,#REF!<0),"ujemny plan","") -> 
A78: DWB/5/ND/DG | B78: wpływy z dzierżawy gruntów | C78: 852 | D78: 85202 | E78: 0750 | F78: PWMW | N78: =IF(SUM(#REF!)>0,"Tak","") ->  | O78: =IF(OR(G78<0,J78<0,#REF!<0,#REF!<0),"ujemny plan","") -> 
A79: DWB/5/ND/DG | B79: wpływy z dzierżawy gruntów | C79: 854 | D79: 85403 | E79: 0750 | N79: =IF(SUM(#REF!)>0,"Tak","") ->  | O79: =IF(OR(G79<0,J79<0,#REF!<0,#REF!<0),"ujemny plan","") -> 
A80: DWB/5/ND/DG | B80: wpływy z dzierżawy gruntów | C80: 854 | D80: 85407 | E80: 0750 | N80: =IF(SUM(#REF!)>0,"Tak","") ->  | O80: =IF(OR(G80<0,J80<0,#REF!<0,#REF!<0),"ujemny plan","") -> 
A81: DWB/5/ND/DG | B81: wpływy z dzierżawy gruntów | C81: 854 | D81: 85410 | E81: 0750 | N81: =IF(SUM(#REF!)>0,"Tak","") ->  | O81: =IF(OR(G81<0,J81<0,#REF!<0,#REF!<0),"ujemny plan","") -> 
A82: DWB/5/ND/DG | B82: wpływy z dzierżawy gruntów | C82: 854 | D82: 85412 | E82: 0750 | N82: =IF(SUM(#REF!)>0,"Tak","") ->  | O82: =IF(OR(G82<0,J82<0,#REF!<0,#REF!<0),"ujemny plan","") -> 
A83: DWB/5/ND/DG | B83: wpływy z dzierżawy gruntów | C83: 854 | D83: 85420 | E83: 0750 | N83: =IF(SUM(#REF!)>0,"Tak","") ->  | O83: =IF(OR(G83<0,J83<0,#REF!<0,#REF!<0),"ujemny plan","") -> 
A84: DWB/5/ND/DG | B84: wpływy z dzierżawy gruntów | C84: 854 | D84: 85421 | E84: 0750 | N84: =IF(SUM(#REF!)>0,"Tak","") ->  | O84: =IF(OR(G84<0,J84<0,#REF!<0,#REF!<0),"ujemny plan","") -> 
A85: DWB/5/ND/DG | B85: wpływy z dzierżawy gruntów | C85: 855 | D85: 85510 | E85: 0750 | F85: PWMW | N85: =IF(SUM(#REF!)>0,"Tak","") ->  | O85: =IF(OR(G85<0,J85<0,#REF!<0,#REF!<0),"ujemny plan","") -> 
A86: DWB/5/ND/DG | B86: wpływy z dzierżawy gruntów | C86: 900 | D86: 90002 | E86: 0750 | N86: =IF(SUM(#REF!)>0,"Tak","") ->  | O86: =IF(OR(G86<0,J86<0,#REF!<0,#REF!<0),"ujemny plan","") -> 
A87: DWB/5/ND/DG | B87: wpływy z dzierżawy gruntów | C87: 900 | D87: 90003 | E87: 0750 | N87: =IF(SUM(#REF!)>0,"Tak","") ->  | O87: =IF(OR(G87<0,J87<0,#REF!<0,#REF!<0),"ujemny plan","") -> 
A88: DWB/5/ND/DG | B88: wpływy z dzierżawy gruntów | C88: 900 | D88: 90004 | E88: 0750 | N88: =IF(SUM(#REF!)>0,"Tak","") ->  | O88: =IF(OR(G88<0,J88<0,#REF!<0,#REF!<0),"ujemny plan","") -> 
A89: DWB/5/ND/DG | B89: wpływy z dzierżawy gruntów | C89: 900 | D89: 90095 | E89: 0750 | F89: GMMW | N89: =IF(SUM(#REF!)>0,"Tak","") ->  | O89: =IF(OR(G89<0,J89<0,#REF!<0,#REF!<0),"ujemny plan","") -> 
A90: DWB/5/ND/DG | B90: wpływy z dzierżawy gruntów | C90: 925 | D90: 92504 | E90: 0750 | N90: =IF(SUM(#REF!)>0,"Tak","") ->  | O90: =IF(OR(G90<0,J90<0,#REF!<0,#REF!<0),"ujemny plan","") -> 
A91: DWB/5/ND/DG | B91: wpływy z dzierżawy gruntów | C91: 926 | D91: 92604 | E91: 0750 | F91: GMMW | N91: =IF(SUM(#REF!)>0,"Tak","") ->  | O91: =IF(OR(G91<0,J91<0,#REF!<0,#REF!<0),"ujemny plan","") -> 
A92: DWB/5/ND/DP | B92: wpływy z dzierżawy parkingów | E92: 0750 | G92: =SUM(G93) -> 0 | J92: 0 | N92: =IF(SUM(#REF!)>0,"Tak","") ->  | O92: =IF(OR(G92<0,J92<0,#REF!<0,#REF!<0),"ujemny plan","") -> 
A93: DWB/5/ND/DP | B93: wpływy z dzierżawy parkingów | C93: 600 | D93: 60015 | E93: 0750 | F93: GMMW | N93: =IF(SUM(#REF!)>0,"Tak","") ->  | O93: =IF(OR(G93<0,J93<0,#REF!<0,#REF!<0),"ujemny plan","") -> 
A94: DWB/5/ND/MI | B94: wpływy z czynszu za mieszkania komunalne | E94: 0750 | G94: =SUM(G95:G123) -> 3786500 | H94: 4089969.54 | I94: 1.080145131 | J94: 36500 | K94: 30480.76 | L94: 0.8350893151 | M94: Tak | N94: =IF(SUM(#REF!)>0,"Tak","") ->  | O94: =IF(OR(G94<0,J94<0,#REF!<0,#REF!<0),"ujemny plan","") -> 
A95: DWB/5/ND/MI | B95: wpływy z czynszu za mieszkania komunalne | C95: 600 | D95: 60004 | E95: 0750 | N95: =IF(SUM(#REF!)>0,"Tak","") ->  | O95: =IF(OR(G95<0,J95<0,#REF!<0,#REF!<0),"ujemny plan","") -> 
A96: DWB/5/ND/MI | B96: wpływy z czynszu za mieszkania komunalne | C96: 600 | D96: 60015 | E96: 0750 | N96: =IF(SUM(#REF!)>0,"Tak","") ->  | O96: =IF(OR(G96<0,J96<0,#REF!<0,#REF!<0),"ujemny plan","") -> 
A97: DWB/5/ND/MI | B97: wpływy z czynszu za mieszkania komunalne | C97: 600 | D97: 60016 | E97: 0750 | N97: =IF(SUM(#REF!)>0,"Tak","") ->  | O97: =IF(OR(G97<0,J97<0,#REF!<0,#REF!<0),"ujemny plan","") -> 
A98: DWB/5/ND/MI | B98: wpływy z czynszu za mieszkania komunalne | C98: 700 | D98: 70004 | E98: 0750 | N98: =IF(SUM(#REF!)>0,"Tak","") ->  | O98: =IF(OR(G98<0,J98<0,#REF!<0,#REF!<0),"ujemny plan","") -> 
A99: DWB/5/ND/MI | B99: wpływy z czynszu za mieszkania komunalne | C99: 700 | D99: 70005 | E99: 0750 | F99: GMMW | G99: 36500 | H99: 30480.76 | I99: 0.8350893151 | J99: 36500 | K99: 30480.76 | L99: 0.8350893151 | M99: Tak | N99: =IF(SUM(#REF!)>0,"Tak","") ->  | O99: =IF(OR(G99<0,J99<0,#REF!<0,#REF!<0),"ujemny plan","") -> 
A100: DWB/5/ND/MI | B100: wpływy z czynszu za mieszkania komunalne | C100: 700 | D100: 70007 | E100: 0750 | F100: GMMW | G100: 3750000 | H100: 4059488.78 | I100: 1.082530341 | J100: 0 | K100: 0 | M100: Tak | N100: =IF(SUM(#REF!)>0,"Tak","") ->  | O100: =IF(OR(G100<0,J100<0,#REF!<0,#REF!<0),"ujemny plan","") -> 
A101: DWB/5/ND/MI | B101: wpływy z czynszu za mieszkania komunalne | C101: 750 | D101: 75023 | E101: 0750 | N101: =IF(SUM(#REF!)>0,"Tak","") ->  | O101: =IF(OR(G101<0,J101<0,#REF!<0,#REF!<0),"ujemny plan","") -> 
A102: DWB/5/ND/MI | B102: wpływy z czynszu za mieszkania komunalne | C102: 801 | D102: 80101 | E102: 0750 | N102: =IF(SUM(#REF!)>0,"Tak","") ->  | O102: =IF(OR(G102<0,J102<0,#REF!<0,#REF!<0),"ujemny plan","") -> 
A103: DWB/5/ND/MI | B103: wpływy z czynszu za mieszkania komunalne | C103: 801 | D103: 80102 | E103: 0750 | N103: =IF(SUM(#REF!)>0,"Tak","") ->  | O103: =IF(OR(G103<0,J103<0,#REF!<0,#REF!<0),"ujemny plan","") -> 
A104: DWB/5/ND/MI | B104: wpływy z czynszu za mieszkania komunalne | C104: 801 | D104: 80104 | E104: 0750 | N104: =IF(SUM(#REF!)>0,"Tak","") ->  | O104: =IF(OR(G104<0,J104<0,#REF!<0,#REF!<0),"ujemny plan","") -> 
A105: DWB/5/ND/MI | B105: wpływy z czynszu za mieszkania komunalne | C105: 801 | D105: 80120 | E105: 0750 | N105: =IF(SUM(#REF!)>0,"Tak","") ->  | O105: =IF(OR(G105<0,J105<0,#REF!<0,#REF!<0),"ujemny plan","") -> 
A106: DWB/5/ND/MI | B106: wpływy z czynszu za mieszkania komunalne | C106: 801 | D106: 80134 | E106: 0750 | N106: =IF(SUM(#REF!)>0,"Tak","") ->  | O106: =IF(OR(G106<0,J106<0,#REF!<0,#REF!<0),"ujemny plan","") -> 
A107: DWB/5/ND/MI | B107: wpływy z czynszu za mieszkania komunalne | C107: 801 | D107: 80140 | E107: 0750 | N107: =IF(SUM(#REF!)>0,"Tak","") ->  | O107: =IF(OR(G107<0,J107<0,#REF!<0,#REF!<0),"ujemny plan","") -> 
A108: DWB/5/ND/MI | B108: wpływy z czynszu za mieszkania komunalne | C108: 801 | D108: 80148 | E108: 0750 | N108: =IF(SUM(#REF!)>0,"Tak","") ->  | O108: =IF(OR(G108<0,J108<0,#REF!<0,#REF!<0),"ujemny plan","") -> 
A109: DWB/5/ND/MI | B109: wpływy z czynszu za mieszkania komunalne | C109: 851 | D109: 85158 | E109: 0750 | N109: =IF(SUM(#REF!)>0,"Tak","") ->  | O109: =IF(OR(G109<0,J109<0,#REF!<0,#REF!<0),"ujemny plan","") -> 
A110: DWB/5/ND/MI | B110: wpływy z czynszu za mieszkania komunalne | C110: 852 | D110: 85202 | E110: 0750 | N110: =IF(SUM(#REF!)>0,"Tak","") ->  | O110: =IF(OR(G110<0,J110<0,#REF!<0,#REF!<0),"ujemny plan","") -> 
A111: DWB/5/ND/MI | B111: wpływy z czynszu za mieszkania komunalne | C111: 854 | D111: 85403 | E111: 0750 | N111: =IF(SUM(#REF!)>0,"Tak","") ->  | O111: =IF(OR(G111<0,J111<0,#REF!<0,#REF!<0),"ujemny plan","") -> 
A112: DWB/5/ND/MI | B112: wpływy z czynszu za mieszkania komunalne | C112: 854 | D112: 85407 | E112: 0750 | N112: =IF(SUM(#REF!)>0,"Tak","") ->  | O112: =IF(OR(G112<0,J112<0,#REF!<0,#REF!<0),"ujemny plan","") -> 
A113: DWB/5/ND/MI | B113: wpływy z czynszu za mieszkania komunalne | C113: 854 | D113: 85410 | E113: 0750 | N113: =IF(SUM(#REF!)>0,"Tak","") ->  | O113: =IF(OR(G113<0,J113<0,#REF!<0,#REF!<0),"ujemny plan","") -> 
A114: DWB/5/ND/MI | B114: wpływy z czynszu za mieszkania komunalne | C114: 854 | D114: 85412 | E114: 0750 | N114: =IF(SUM(#REF!)>0,"Tak","") ->  | O114: =IF(OR(G114<0,J114<0,#REF!<0,#REF!<0),"ujemny plan","") -> 
A115: DWB/5/ND/MI | B115: wpływy z czynszu za mieszkania komunalne | C115: 854 | D115: 85420 | E115: 0750 | N115: =IF(SUM(#REF!)>0,"Tak","") ->  | O115: =IF(OR(G115<0,J115<0,#REF!<0,#REF!<0),"ujemny plan","") -> 
A116: DWB/5/ND/MI | B116: wpływy z czynszu za mieszkania komunalne | C116: 854 | D116: 85421 | E116: 0750 | N116: =IF(SUM(#REF!)>0,"Tak","") ->  | O116: =IF(OR(G116<0,J116<0,#REF!<0,#REF!<0),"ujemny plan","") -> 
A117: DWB/5/ND/MI | B117: wpływy z czynszu za mieszkania komunalne | C117: 855 | D117: 85510 | E117: 0750 | F117: PWMW | N117: =IF(SUM(#REF!)>0,"Tak","") ->  | O117: =IF(OR(G117<0,J117<0,#REF!<0,#REF!<0),"ujemny plan","") -> 
A118: DWB/5/ND/MI | B118: wpływy z czynszu za mieszkania komunalne | C118: 855 | D118: 85595 | E118: 0750 | N118: =IF(SUM(#REF!)>0,"Tak","") ->  | O118: =IF(OR(G118<0,J118<0,#REF!<0,#REF!<0),"ujemny plan","") -> 
A119: DWB/5/ND/MI | B119: wpływy z czynszu za mieszkania komunalne | C119: 900 | D119: 90002 | E119: 0750 | N119: =IF(SUM(#REF!)>0,"Tak","") ->  | O119: =IF(OR(G119<0,J119<0,#REF!<0,#REF!<0),"ujemny plan","") -> 
A120: DWB/5/ND/MI | B120: wpływy z czynszu za mieszkania komunalne | C120: 900 | D120: 90003 | E120: 0750 | N120: =IF(SUM(#REF!)>0,"Tak","") ->  | O120: =IF(OR(G120<0,J120<0,#REF!<0,#REF!<0),"ujemny plan","") -> 
A121: DWB/5/ND/MI | B121: wpływy z czynszu za mieszkania komunalne | C121: 900 | D121: 90095 | E121: 0750 | N121: =IF(SUM(#REF!)>0,"Tak","") ->  | O121: =IF(OR(G121<0,J121<0,#REF!<0,#REF!<0),"ujemny plan","") -> 
A122: DWB/5/ND/MI | B122: wpływy z czynszu za mieszkania komunalne | C122: 925 | D122: 92504 | E122: 0750 | N122: =IF(SUM(#REF!)>0,"Tak","") ->  | O122: =IF(OR(G122<0,J122<0,#REF!<0,#REF!<0),"ujemny plan","") -> 
A123: DWB/5/ND/MI | B123: wpływy z czynszu za mieszkania komunalne | C123: 926 | D123: 92604 | E123: 0750 | F123: GMMW | N123: =IF(SUM(#REF!)>0,"Tak","") ->  | O123: =IF(OR(G123<0,J123<0,#REF!<0,#REF!<0),"ujemny plan","") -> 
A124: DWB/5/ND/NG | B124: wpływy z najmu garaży | E124: 0750 | G124: =SUM(G125:G151) -> 171000 | H124: 188393.56 | I124: 1.101716725 | J124: 0 | K124: 0 | M124: Tak | N124: =IF(SUM(#REF!)>0,"Tak","") ->  | O124: =IF(OR(G124<0,J124<0,#REF!<0,#REF!<0),"ujemny plan","") -> 
A125: DWB/5/ND/NG | B125: wpływy z najmu garaży | C125: 600 | D125: 60004 | E125: 0750 | N125: =IF(SUM(#REF!)>0,"Tak","") ->  | O125: =IF(OR(G125<0,J125<0,#REF!<0,#REF!<0),"ujemny plan","") -> 
A126: DWB/5/ND/NG | B126: wpływy z najmu garaży | C126: 600 | D126: 60015 | E126: 0750 | N126: =IF(SUM(#REF!)>0,"Tak","") ->  | O126: =IF(OR(G126<0,J126<0,#REF!<0,#REF!<0),"ujemny plan","") -> 
A127: DWB/5/ND/NG | B127: wpływy z najmu garaży | C127: 600 | D127: 60016 | E127: 0750 | N127: =IF(SUM(#REF!)>0,"Tak","") ->  | O127: =IF(OR(G127<0,J127<0,#REF!<0,#REF!<0),"ujemny plan","") -> 
A128: DWB/5/ND/NG | B128: wpływy z najmu garaży | C128: 700 | D128: 70004 | E128: 0750 | N128: =IF(SUM(#REF!)>0,"Tak","") ->  | O128: =IF(OR(G128<0,J128<0,#REF!<0,#REF!<0),"ujemny plan","") -> 
A129: DWB/5/ND/NG | B129: wpływy z najmu garaży | C129: 700 | D129: 70005 | E129: 0750 | F129: GMMW | G129: 171000 | H129: 188393.56 | I129: 1.101716725 | J129: 0 | K129: 0 | M129: Tak | N129: =IF(SUM(#REF!)>0,"Tak","") ->  | O129: =IF(OR(G129<0,J129<0,#REF!<0,#REF!<0),"ujemny plan","") -> 
A130: DWB/5/ND/NG | B130: wpływy z najmu garaży | C130: 750 | D130: 75023 | E130: 0750 | N130: =IF(SUM(#REF!)>0,"Tak","") ->  | O130: =IF(OR(G130<0,J130<0,#REF!<0,#REF!<0),"ujemny plan","") -> 
A131: DWB/5/ND/NG | B131: wpływy z najmu garaży | C131: 801 | D131: 80101 | E131: 0750 | N131: =IF(SUM(#REF!)>0,"Tak","") ->  | O131: =IF(OR(G131<0,J131<0,#REF!<0,#REF!<0),"ujemny plan","") -> 
A132: DWB/5/ND/NG | B132: wpływy z najmu garaży | C132: 801 | D132: 80102 | E132: 0750 | N132: =IF(SUM(#REF!)>0,"Tak","") ->  | O132: =IF(OR(G132<0,J132<0,#REF!<0,#REF!<0),"ujemny plan","") -> 
A133: DWB/5/ND/NG | B133: wpływy z najmu garaży | C133: 801 | D133: 80104 | E133: 0750 | N133: =IF(SUM(#REF!)>0,"Tak","") ->  | O133: =IF(OR(G133<0,J133<0,#REF!<0,#REF!<0),"ujemny plan","") -> 
A134: DWB/5/ND/NG | B134: wpływy z najmu garaży | C134: 801 | D134: 80120 | E134: 0750 | N134: =IF(SUM(#REF!)>0,"Tak","") ->  | O134: =IF(OR(G134<0,J134<0,#REF!<0,#REF!<0),"ujemny plan","") -> 
A135: DWB/5/ND/NG | B135: wpływy z najmu garaży | C135: 801 | D135: 80134 | E135: 0750 | N135: =IF(SUM(#REF!)>0,"Tak","") ->  | O135: =IF(OR(G135<0,J135<0,#REF!<0,#REF!<0),"ujemny plan","") -> 
A136: DWB/5/ND/NG | B136: wpływy z najmu garaży | C136: 801 | D136: 80140 | E136: 0750 | M136: =IF(SUM(G136:L136)>0,"Tak","") ->  | N136: =IF(SUM(#REF!)>0,"Tak","") ->  | O136: =IF(OR(G136<0,J136<0,#REF!<0,#REF!<0),"ujemny plan","") -> 
A137: DWB/5/ND/NG | B137: wpływy z najmu garaży | C137: 801 | D137: 80148 | E137: 0750 | I137: =H137/G137 ->  | L137: =K137/J137 ->  | N137: =IF(SUM(#REF!)>0,"Tak","") ->  | O137: =IF(OR(G137<0,J137<0,#REF!<0,#REF!<0),"ujemny plan","") -> 
A138: DWB/5/ND/NG | B138: wpływy z najmu garaży | C138: 851 | D138: 85158 | E138: 0750 | N138: =IF(SUM(#REF!)>0,"Tak","") ->  | O138: =IF(OR(G138<0,J138<0,#REF!<0,#REF!<0),"ujemny plan","") -> 
A139: DWB/5/ND/NG | B139: wpływy z najmu garaży | C139: 852 | D139: 85202 | E139: 0750 | N139: =IF(SUM(#REF!)>0,"Tak","") ->  | O139: =IF(OR(G139<0,J139<0,#REF!<0,#REF!<0),"ujemny plan","") -> 
A140: DWB/5/ND/NG | B140: wpływy z najmu garaży | C140: 854 | D140: 85403 | E140: 0750 | N140: =IF(SUM(#REF!)>0,"Tak","") ->  | O140: =IF(OR(G140<0,J140<0,#REF!<0,#REF!<0),"ujemny plan","") -> 
A141: DWB/5/ND/NG | B141: wpływy z najmu garaży | C141: 854 | D141: 85407 | E141: 0750 | N141: =IF(SUM(#REF!)>0,"Tak","") ->  | O141: =IF(OR(G141<0,J141<0,#REF!<0,#REF!<0),"ujemny plan","") -> 
A142: DWB/5/ND/NG | B142: wpływy z najmu garaży | C142: 854 | D142: 85410 | E142: 0750 | N142: =IF(SUM(#REF!)>0,"Tak","") ->  | O142: =IF(OR(G142<0,J142<0,#REF!<0,#REF!<0),"ujemny plan","") -> 
A143: DWB/5/ND/NG | B143: wpływy z najmu garaży | C143: 854 | D143: 85412 | E143: 0750 | N143: =IF(SUM(#REF!)>0,"Tak","") ->  | O143: =IF(OR(G143<0,J143<0,#REF!<0,#REF!<0),"ujemny plan","") -> 
A144: DWB/5/ND/NG | B144: wpływy z najmu garaży | C144: 854 | D144: 85420 | E144: 0750 | N144: =IF(SUM(#REF!)>0,"Tak","") ->  | O144: =IF(OR(G144<0,J144<0,#REF!<0,#REF!<0),"ujemny plan","") -> 
A145: DWB/5/ND/NG | B145: wpływy z najmu garaży | C145: 854 | D145: 85421 | E145: 0750 | N145: =IF(SUM(#REF!)>0,"Tak","") ->  | O145: =IF(OR(G145<0,J145<0,#REF!<0,#REF!<0),"ujemny plan","") -> 
A146: DWB/5/ND/NG | B146: wpływy z najmu garaży | C146: 855 | D146: 85510 | E146: 0750 | N146: =IF(SUM(#REF!)>0,"Tak","") ->  | O146: =IF(OR(G146<0,J146<0,#REF!<0,#REF!<0),"ujemny plan","") -> 
A147: DWB/5/ND/NG | B147: wpływy z najmu garaży | C147: 900 | D147: 90002 | E147: 0750 | N147: =IF(SUM(#REF!)>0,"Tak","") ->  | O147: =IF(OR(G147<0,J147<0,#REF!<0,#REF!<0),"ujemny plan","") -> 
A148: DWB/5/ND/NG | B148: wpływy z najmu garaży | C148: 900 | D148: 90003 | E148: 0750 | N148: =IF(SUM(#REF!)>0,"Tak","") ->  | O148: =IF(OR(G148<0,J148<0,#REF!<0,#REF!<0),"ujemny plan","") -> 
A149: DWB/5/ND/NG | B149: wpływy z najmu garaży | C149: 900 | D149: 90095 | E149: 0750 | N149: =IF(SUM(#REF!)>0,"Tak","") ->  | O149: =IF(OR(G149<0,J149<0,#REF!<0,#REF!<0),"ujemny plan","") -> 
A150: DWB/5/ND/NG | B150: wpływy z najmu garaży | C150: 925 | D150: 92504 | E150: 0750 | N150: =IF(SUM(#REF!)>0,"Tak","") ->  | O150: =IF(OR(G150<0,J150<0,#REF!<0,#REF!<0),"ujemny plan","") -> 
A151: DWB/5/ND/NG | B151: wpływy z najmu garaży | C151: 926 | D151: 92604 | E151: 0750 | N151: =IF(SUM(#REF!)>0,"Tak","") ->  | O151: =IF(OR(G151<0,J151<0,#REF!<0,#REF!<0),"ujemny plan","") -> 
A152: DWB/5/ND/NN | B152: wpływy z najmu nieruchomości | E152: 0750 | G152: =SUM(G153:G182) -> 0 | J152: 0 | N152: =IF(SUM(#REF!)>0,"Tak","") ->  | O152: =IF(OR(G152<0,J152<0,#REF!<0,#REF!<0),"ujemny plan","") -> 
A153: DWB/5/ND/NN | B153: wpływy z najmu nieruchomości | C153: 600 | D153: 60004 | E153: 0750 | N153: =IF(SUM(#REF!)>0,"Tak","") ->  | O153: =IF(OR(G153<0,J153<0,#REF!<0,#REF!<0),"ujemny plan","") -> 
A154: DWB/5/ND/NN | B154: wpływy z najmu nieruchomości | C154: 600 | D154: 60015 | E154: 0750 | N154: =IF(SUM(#REF!)>0,"Tak","") ->  | O154: =IF(OR(G154<0,J154<0,#REF!<0,#REF!<0),"ujemny plan","") -> 
A155: DWB/5/ND/NN | B155: wpływy z najmu nieruchomości | C155: 600 | D155: 60016 | E155: 0750 | N155: =IF(SUM(#REF!)>0,"Tak","") ->  | O155: =IF(OR(G155<0,J155<0,#REF!<0,#REF!<0),"ujemny plan","") -> 
A156: DWB/5/ND/NN | B156: wpływy z najmu nieruchomości | C156: 700 | D156: 70004 | E156: 0750 | N156: =IF(SUM(#REF!)>0,"Tak","") ->  | O156: =IF(OR(G156<0,J156<0,#REF!<0,#REF!<0),"ujemny plan","") -> 
A157: DWB/5/ND/NN | B157: wpływy z najmu nieruchomości | C157: 700 | D157: 70005 | E157: 0750 | F157: GMMW | N157: =IF(SUM(#REF!)>0,"Tak","") ->  | O157: =IF(OR(G157<0,J157<0,#REF!<0,#REF!<0),"ujemny plan","") -> 
A158: DWB/5/ND/NN | B158: wpływy z najmu nieruchomości | C158: 750 | D158: 75023 | E158: 0750 | N158: =IF(SUM(#REF!)>0,"Tak","") ->  | O158: =IF(OR(G158<0,J158<0,#REF!<0,#REF!<0),"ujemny plan","") -> 
A159: DWB/5/ND/NN | B159: wpływy z najmu nieruchomości | C159: 801 | D159: 80101 | E159: 0750 | N159: =IF(SUM(#REF!)>0,"Tak","") ->  | O159: =IF(OR(G159<0,J159<0,#REF!<0,#REF!<0),"ujemny plan","") -> 
A160: DWB/5/ND/NN | B160: wpływy z najmu nieruchomości | C160: 801 | D160: 80102 | E160: 0750 | N160: =IF(SUM(#REF!)>0,"Tak","") ->  | O160: =IF(OR(G160<0,J160<0,#REF!<0,#REF!<0),"ujemny plan","") -> 
A161: DWB/5/ND/NN | B161: wpływy z najmu nieruchomości | C161: 801 | D161: 80104 | E161: 0750 | N161: =IF(SUM(#REF!)>0,"Tak","") ->  | O161: =IF(OR(G161<0,J161<0,#REF!<0,#REF!<0),"ujemny plan","") -> 
A162: DWB/5/ND/NN | B162: wpływy z najmu nieruchomości | C162: 801 | D162: 80120 | E162: 0750 | N162: =IF(SUM(#REF!)>0,"Tak","") ->  | O162: =IF(OR(G162<0,J162<0,#REF!<0,#REF!<0),"ujemny plan","") -> 
A163: DWB/5/ND/NN | B163: wpływy z najmu nieruchomości | C163: 801 | D163: 80134 | E163: 0750 | N163: =IF(SUM(#REF!)>0,"Tak","") ->  | O163: =IF(OR(G163<0,J163<0,#REF!<0,#REF!<0),"ujemny plan","") -> 
A164: DWB/5/ND/NN | B164: wpływy z najmu nieruchomości | C164: 801 | D164: 80140 | E164: 0750 | N164: =IF(SUM(#REF!)>0,"Tak","") ->  | O164: =IF(OR(G164<0,J164<0,#REF!<0,#REF!<0),"ujemny plan","") -> 
A165: DWB/5/ND/NN | B165: wpływy z najmu nieruchomości | C165: 801 | D165: 80148 | E165: 0750 | N165: =IF(SUM(#REF!)>0,"Tak","") ->  | O165: =IF(OR(G165<0,J165<0,#REF!<0,#REF!<0),"ujemny plan","") -> 
A166: DWB/5/ND/NN | B166: wpływy z najmu nieruchomości | C166: 851 | D166: 85111 | E166: 0750 | N166: =IF(SUM(#REF!)>0,"Tak","") ->  | O166: =IF(OR(G166<0,J166<0,#REF!<0,#REF!<0),"ujemny plan","") -> 
A167: DWB/5/ND/NN | B167: wpływy z najmu nieruchomości | C167: 851 | D167: 85158 | E167: 0750 | N167: =IF(SUM(#REF!)>0,"Tak","") ->  | O167: =IF(OR(G167<0,J167<0,#REF!<0,#REF!<0),"ujemny plan","") -> 
A168: DWB/5/ND/NN | B168: wpływy z najmu nieruchomości | C168: 852 | D168: 85202 | E168: 0750 | N168: =IF(SUM(#REF!)>0,"Tak","") ->  | O168: =IF(OR(G168<0,J168<0,#REF!<0,#REF!<0),"ujemny plan","") -> 
A169: DWB/5/ND/NN | B169: wpływy z najmu nieruchomości | C169: 852 | D169: 85295 | E169: 0750 | F169: GMMW | N169: =IF(SUM(#REF!)>0,"Tak","") ->  | O169: =IF(OR(G169<0,J169<0,#REF!<0,#REF!<0),"ujemny plan","") -> 
A170: DWB/5/ND/NN | B170: wpływy z najmu nieruchomości | C170: 854 | D170: 85403 | E170: 0750 | N170: =IF(SUM(#REF!)>0,"Tak","") ->  | O170: =IF(OR(G170<0,J170<0,#REF!<0,#REF!<0),"ujemny plan","") -> 
A171: DWB/5/ND/NN | B171: wpływy z najmu nieruchomości | C171: 854 | D171: 85407 | E171: 0750 | N171: =IF(SUM(#REF!)>0,"Tak","") ->  | O171: =IF(OR(G171<0,J171<0,#REF!<0,#REF!<0),"ujemny plan","") -> 
A172: DWB/5/ND/NN | B172: wpływy z najmu nieruchomości | C172: 854 | D172: 85410 | E172: 0750 | N172: =IF(SUM(#REF!)>0,"Tak","") ->  | O172: =IF(OR(G172<0,J172<0,#REF!<0,#REF!<0),"ujemny plan","") -> 
A173: DWB/5/ND/NN | B173: wpływy z najmu nieruchomości | C173: 854 | D173: 85412 | E173: 0750 | N173: =IF(SUM(#REF!)>0,"Tak","") ->  | O173: =IF(OR(G173<0,J173<0,#REF!<0,#REF!<0),"ujemny plan","") -> 
A174: DWB/5/ND/NN | B174: wpływy z najmu nieruchomości | C174: 854 | D174: 85420 | E174: 0750 | N174: =IF(SUM(#REF!)>0,"Tak","") ->  | O174: =IF(OR(G174<0,J174<0,#REF!<0,#REF!<0),"ujemny plan","") -> 
A175: DWB/5/ND/NN | B175: wpływy z najmu nieruchomości | C175: 854 | D175: 85421 | E175: 0750 | N175: =IF(SUM(#REF!)>0,"Tak","") ->  | O175: =IF(OR(G175<0,J175<0,#REF!<0,#REF!<0),"ujemny plan","") -> 
A176: DWB/5/ND/NN | B176: wpływy z najmu nieruchomości | C176: 855 | D176: 85510 | E176: 0750 | F176: PWMW | N176: =IF(SUM(#REF!)>0,"Tak","") ->  | O176: =IF(OR(G176<0,J176<0,#REF!<0,#REF!<0),"ujemny plan","") -> 
A177: DWB/5/ND/NN | B177: wpływy z najmu nieruchomości | C177: 900 | D177: 90002 | E177: 0750 | N177: =IF(SUM(#REF!)>0,"Tak","") ->  | O177: =IF(OR(G177<0,J177<0,#REF!<0,#REF!<0),"ujemny plan","") -> 
A178: DWB/5/ND/NN | B178: wpływy z najmu nieruchomości | C178: 900 | D178: 90003 | E178: 0750 | F178: GMMW | N178: =IF(SUM(#REF!)>0,"Tak","") ->  | O178: =IF(OR(G178<0,J178<0,#REF!<0,#REF!<0),"ujemny plan","") -> 
A179: DWB/5/ND/NN | B179: wpływy z najmu nieruchomości | C179: 900 | D179: 90095 | E179: 0750 | N179: =IF(SUM(#REF!)>0,"Tak","") ->  | O179: =IF(OR(G179<0,J179<0,#REF!<0,#REF!<0),"ujemny plan","") -> 
A180: DWB/5/ND/NN | B180: wpływy z najmu nieruchomości | C180: 900 | D180: 90004 | E180: 0750 | N180: =IF(SUM(#REF!)>0,"Tak","") ->  | O180: =IF(OR(G180<0,J180<0,#REF!<0,#REF!<0),"ujemny plan","") -> 
A181: DWB/5/ND/NN | B181: wpływy z najmu nieruchomości | C181: 925 | D181: 92504 | E181: 0750 | N181: =IF(SUM(#REF!)>0,"Tak","") ->  | O181: =IF(OR(G181<0,J181<0,#REF!<0,#REF!<0),"ujemny plan","") -> 
A182: DWB/5/ND/NN | B182: wpływy z najmu nieruchomości | C182: 926 | D182: 92604 | E182: 0750 | N182: =IF(SUM(#REF!)>0,"Tak","") ->  | O182: =IF(OR(G182<0,J182<0,#REF!<0,#REF!<0),"ujemny plan","") -> 
A183: DWB/5/ND/LU | B183: wpływy z najmu lokali użytkowych | E183: 0750 | G183: =SUM(G184:G210) -> 400000 | H183: 402534.33 | I183: 1.006335825 | J183: 0 | K183: 0 | M183: Tak | N183: =IF(SUM(#REF!)>0,"Tak","") ->  | O183: =IF(OR(G183<0,J183<0,#REF!<0,#REF!<0),"ujemny plan","") -> 
A184: DWB/5/ND/LU | B184: wpływy z najmu lokali użytkowych | C184: 600 | D184: 60004 | E184: 0750 | N184: =IF(SUM(#REF!)>0,"Tak","") ->  | O184: =IF(OR(G184<0,J184<0,#REF!<0,#REF!<0),"ujemny plan","") -> 
A185: DWB/5/ND/LU | B185: wpływy z najmu lokali użytkowych | C185: 600 | D185: 60015 | E185: 0750 | N185: =IF(SUM(#REF!)>0,"Tak","") ->  | O185: =IF(OR(G185<0,J185<0,#REF!<0,#REF!<0),"ujemny plan","") -> 
A186: DWB/5/ND/LU | B186: wpływy z najmu lokali użytkowych | C186: 600 | D186: 60016 | E186: 0750 | N186: =IF(SUM(#REF!)>0,"Tak","") ->  | O186: =IF(OR(G186<0,J186<0,#REF!<0,#REF!<0),"ujemny plan","") -> 
A187: DWB/5/ND/LU | B187: wpływy z najmu lokali użytkowych | C187: 700 | D187: 70004 | E187: 0750 | N187: =IF(SUM(#REF!)>0,"Tak","") ->  | O187: =IF(OR(G187<0,J187<0,#REF!<0,#REF!<0),"ujemny plan","") -> 
A188: DWB/5/ND/LU | B188: wpływy z najmu lokali użytkowych | C188: 700 | D188: 70005 | E188: 0750 | F188: GMMW | G188: 400000 | H188: 402534.33 | I188: 1.006335825 | J188: 0 | K188: 0 | M188: Tak | N188: =IF(SUM(#REF!)>0,"Tak","") ->  | O188: =IF(OR(G188<0,J188<0,#REF!<0,#REF!<0),"ujemny plan","") -> 
A189: DWB/5/ND/LU | B189: wpływy z najmu lokali użytkowych | C189: 750 | D189: 75023 | E189: 0750 | F189: GMMW | N189: =IF(SUM(#REF!)>0,"Tak","") ->  | O189: =IF(OR(G189<0,J189<0,#REF!<0,#REF!<0),"ujemny plan","") -> 
A190: DWB/5/ND/LU | B190: wpływy z najmu lokali użytkowych | C190: 801 | D190: 80101 | E190: 0750 | N190: =IF(SUM(#REF!)>0,"Tak","") ->  | O190: =IF(OR(G190<0,J190<0,#REF!<0,#REF!<0),"ujemny plan","") -> 
A191: DWB/5/ND/LU | B191: wpływy z najmu lokali użytkowych | C191: 801 | D191: 80102 | E191: 0750 | N191: =IF(SUM(#REF!)>0,"Tak","") ->  | O191: =IF(OR(G191<0,J191<0,#REF!<0,#REF!<0),"ujemny plan","") -> 
A192: DWB/5/ND/LU | B192: wpływy z najmu lokali użytkowych | C192: 801 | D192: 80104 | E192: 0750 | N192: =IF(SUM(#REF!)>0,"Tak","") ->  | O192: =IF(OR(G192<0,J192<0,#REF!<0,#REF!<0),"ujemny plan","") -> 
A193: DWB/5/ND/LU | B193: wpływy z najmu lokali użytkowych | C193: 801 | D193: 80120 | E193: 0750 | N193: =IF(SUM(#REF!)>0,"Tak","") ->  | O193: =IF(OR(G193<0,J193<0,#REF!<0,#REF!<0),"ujemny plan","") -> 
A194: DWB/5/ND/LU | B194: wpływy z najmu lokali użytkowych | C194: 801 | D194: 80134 | E194: 0750 | N194: =IF(SUM(#REF!)>0,"Tak","") ->  | O194: =IF(OR(G194<0,J194<0,#REF!<0,#REF!<0),"ujemny plan","") -> 
A195: DWB/5/ND/LU | B195: wpływy z najmu lokali użytkowych | C195: 801 | D195: 80140 | E195: 0750 | N195: =IF(SUM(#REF!)>0,"Tak","") ->  | O195: =IF(OR(G195<0,J195<0,#REF!<0,#REF!<0),"ujemny plan","") -> 
A196: DWB/5/ND/LU | B196: wpływy z najmu lokali użytkowych | C196: 801 | D196: 80148 | E196: 0750 | N196: =IF(SUM(#REF!)>0,"Tak","") ->  | O196: =IF(OR(G196<0,J196<0,#REF!<0,#REF!<0),"ujemny plan","") -> 
A197: DWB/5/ND/LU | B197: wpływy z najmu lokali użytkowych | C197: 851 | D197: 85158 | E197: 0750 | N197: =IF(SUM(#REF!)>0,"Tak","") ->  | O197: =IF(OR(G197<0,J197<0,#REF!<0,#REF!<0),"ujemny plan","") -> 
A198: DWB/5/ND/LU | B198: wpływy z najmu lokali użytkowych | C198: 852 | D198: 85202 | E198: 0750 | N198: =IF(SUM(#REF!)>0,"Tak","") ->  | O198: =IF(OR(G198<0,J198<0,#REF!<0,#REF!<0),"ujemny plan","") -> 
A199: DWB/5/ND/LU | B199: wpływy z najmu lokali użytkowych | C199: 854 | D199: 85403 | E199: 0750 | N199: =IF(SUM(#REF!)>0,"Tak","") ->  | O199: =IF(OR(G199<0,J199<0,#REF!<0,#REF!<0),"ujemny plan","") -> 
A200: DWB/5/ND/LU | B200: wpływy z najmu lokali użytkowych | C200: 854 | D200: 85407 | E200: 0750 | M200: =IF(SUM(G200:L200)>0,"Tak","") ->  | N200: =IF(SUM(#REF!)>0,"Tak","") ->  | O200: =IF(OR(G200<0,J200<0,#REF!<0,#REF!<0),"ujemny plan","") -> 
A201: DWB/5/ND/LU | B201: wpływy z najmu lokali użytkowych | C201: 854 | D201: 85410 | E201: 0750 | I201: =H201/G201 ->  | L201: =K201/J201 ->  | N201: =IF(SUM(#REF!)>0,"Tak","") ->  | O201: =IF(OR(G201<0,J201<0,#REF!<0,#REF!<0),"ujemny plan","") -> 
... 1557 more rows
